Cogmind - Beta 9.4 @@@ ROGUE MODE // 2020.01.17 @ 06:27:30 Player: NekoWaffle Result: Destroyed by L-31 Rogue with Katana Performance ------------- Evolutions (0) 0 Regions Visited (4) 800 Robots Destroyed (37) 185 Value Destroyed (466) 466 Prototype IDs (26) 520 Alien Tech Used (0) 0 Bonus (300) 300 TOTAL SCORE: 2271 Bonus ------- Aligned with FarCom 300 Cogmind --------- Core Integrity 0/250 Matter 276/300 Energy 140/140 System Corruption 0% Temperature Cool (0) Movement Walking (240) Ox4 Location -9/Mines Parts ------- > --- POWER (1) -------- Light Deuterium Engine > --- PROPULSION (2) --- Aluminum Leg > --- UTILITY (2) ------ High-capacity Storage Unit Launcher Guidance Computer > --- WEAPON (2) ------- Light Cannon Mini Grenade Launcher > --- INVENTORY (12) --- Flying Fortress v7 Heat Sink Large Battery (300) Medium Matter Pod (100) High-capacity Matter Pod (200) Sensor Array Tractor Beam Peak State ------------ > --- POWER ------------ Light Deuterium Engine > --- PROPULSION ------- Aluminum Leg Aluminum Leg > --- UTILITY ---------- High-capacity Storage Unit Launcher Guidance Computer > --- WEAPON ----------- Mini Grenade Launcher Datajack > --- INVENTORY -------- Light Ion Engine Flying Fortress v7 Heat Sink Heat Sink Large Battery Medium Matter Pod High-capacity Matter Pod Sensor Array Tractor Beam [Rating: 17] Favorites ----------- Power Light Deuterium Engine Engine Light Deuterium Engine Propulsion Aluminum Leg Leg Aluminum Leg Utility High-capacity Storage Unit Device Tractor Beam Storage High-capacity Storage Unit Processor Launcher Guidance Computer Hackware Hacking Suite Weapon Light Cannon Energy Gun EM Pulse Gun Ballistic Cannon Light Cannon Launcher Mini Grenade Launcher Special Melee Weapon Datajack Build | -11 -10 -10 -10 -9 ------- Run | Scr Mat Min Exi Min Slots Evolved . | . . . . . Power . | . . . . . Propulsion . | . . . . . Utility . | . . . . . Weapon . | . . . . . Parts Attached 24 | 6 8 8 1 1 Power 5 | 1 2 2 . . Engine 5 | 1 2 2 . . Core . | . . . . . Reactor . | . . . . . Propulsion 5 | 2 . 3 . . Treads . | . . . . . Leg 5 | 2 . 3 . . Wheel . | . . . . . Hover . | . . . . . Flight . | . . . . . Utility 5 | 1 3 1 . . Device 1 | . 1 . . . Storage 2 | 1 1 . . . Processor 1 | . . 1 . . Hackware 1 | . 1 . . . Protection . | . . . . . Artifact . | . . . . . Weapon 9 | 2 3 2 1 1 Energy Gun 2 | 2 . . . . Energy Cannon . | . . . . . Ballistic Gun . | . . . . . Ballistic Cannon 4 | . 2 1 . 1 Launcher 1 | . . 1 . . Special Weapon . | . . . . . Impact Weapon . | . . . . . Slashing Weapon . | . . . . . Piercing Weapon . | . . . . . Special Melee Weapon 2 | . 1 . 1 . Unidentified Prototypes . | . . . . . Parts Lost 8 | . 2 4 . 2 Power 2 | . 1 1 . . Propulsion 3 | . . 2 . 1 Utility 1 | . 1 . . . Weapon 2 | . . 1 . 1 Highest Loss Streak 3 | . 1 3 . 2 Average Slot Usage (%) 96 | . 91 98 100 85 Engine 13 | . 13 13 14 14 Leg 27 | . 28 27 28 14 Device 3 | . 1 8 . . Storage 13 | . 12 14 14 14 Processor 6 | . . 4 14 14 Hackware 1 | . 6 . . . Energy Gun 1 | . 4 . . . Ballistic Cannon 14 | . 22 22 1 14 Launcher 6 | . . 4 14 14 Special Melee Weapon 4 | . 1 . 12 . Naked Turns . | . . . . . Heaviest Build 44 | 11 44 44 41 38 Greatest Support 20 | 20 20 20 20 10 Greatest Overweight (x) 4 | . 2 4 2 3 Average Overweight (x) 1 | . 1 2 1 3 Largest Inventory Capacity 12 | 6 12 12 12 12 Average Capacity 11 | 5 10 12 12 12 Most Carried 12 | 2 10 12 12 11 Average Carried 9 | . 5 9 11 10 Final Capacity 12 | 6 12 12 12 12 Final Carried 12 | 1 9 12 11 10 Class Distribution -------------------- 51% | Mutant 48% | Scavenger-Mutant Dominant Class ---------------- Mutant | -10/Materials Mutant | -10/Mines Scavenger-Mutant | -10/Exiles Scavenger-Mutant | -9/Mines Resources | -11 -10 -10 -10 -9 ----------- Run | Scr Mat Min Exi Min Matter Collected 1283 | 204 376 703 . . Remotely 577 | . 3 574 . . Salvage Created 551 | . 398 130 . 23 Parts 46 | . 40 4 . 2 Haulers Intercepted . | . . . . . Recyclers Shooed . | . . . . . Parts Field Recycled . | . . . . . Retrieved Matter . | . . . . . Parts Self-Destructed . | . . . . . Prevented . | . . . . . Kills | -11 -10 -10 -10 -9 ------- Run | Scr Mat Min Exi Min Combat Hostiles Destroyed 27 | . 12 14 . 1 Guns 3 | . 3 . . . Cannons 21 | . 8 13 . . AOE 3 | . 1 1 . 1 Classes Destroyed 7 | . 6 1 . . Worker 4 | . 4 . . . Builder 3 | . 2 1 . . Operator 1 | . 1 . . . Watcher 2 | . 2 . . . Swarmer 6 | . 6 . . . Grunt 9 | . 6 2 . 1 Assembled 12 | . . 12 . . Best Kill Streak 7 | . 7 5 . 1 Combat Bots Only 5 | . 3 5 . 1 Max Kills in Single Turn 3 | . 2 3 . 1 Gunslinging . | . . . . . Exploded 1 | . 1 1 . 1 Melee . | . . . . . Uniques/NPCs Destroyed . | . . . . . Combat | -11 -10 -10 -10 -9 -------- Run | Scr Mat Min Exi Min Damage Taken 1269 | . 499 658 . 112 Core 258 | . 84 110 . 64 Absorbed by Shields . | . . . . . Core Remaining (%) 100 | 100 . . . . Volleys Fired 82 | . 40 40 . 2 Largest 2 | . 2 2 . 1 Hottest 80 | . 80 70 . 35 Shots Fired 159 | . 77 80 . 2 Gun 11 | . 11 . . . Cannon 146 | . 66 79 . 1 Launcher 2 | . . 1 . 1 Special . | . . . . . Kinetic 146 | . 66 79 . 1 Thermal . | . . . . . Explosive 2 | . . 1 . 1 Electromagnetic 11 | . 11 . . . Robot Hit Streak 14 | . 14 4 . . Robot Miss Streak 4 | . 3 4 . . Penetration Max . | . . . . . Secondary Targets . | . . . . . Shots Hit Robots 84 | . 46 38 . . Core Hits 45 | . 21 21 . 3 Critical Hits 3 | . 1 2 . . Critical Kills 2 | . . 2 . . Critical Parts Destroyed 1 | . 1 . . . Melee Attacks 2 | . 2 . . . Impact . | . . . . . Slashing . | . . . . . Piercing . | . . . . . Sneak Attacks 1 | . 1 . . . Combat Hostiles . | . . . . . Follow-up Attacks . | . . . . . Damage Inflicted 1684 | . 764 838 . 82 Guns 86 | . 86 . . . Cannons 1372 | . 653 719 . . Explosions 206 | . 25 99 . 82 Melee . | . . . . . Ramming 20 | . . 20 . . Kinetic 1372 | . 653 719 . . Thermal 25 | . 25 . . . Explosive 181 | . . 99 . 82 Electromagnetic 86 | . 86 . . . Impact . | . . . . . Slashing . | . . . . . Piercing . | . . . . . Highest Corruption . | . . . . . Average Corruption . | . . . . . Corruption Purged . | . . . . . Overload Shots . | . . . . . Overflow Damage 70 | . 8 62 . . Projectiles 68 | . 8 60 . . Explosions . | . . . . . Melee 2 | . . 2 . . Knockbacks 21 | . 8 13 . . Impact . | . . . . . Kinetic 19 | . 7 12 . . Secondary 2 | . 1 1 . . Self-Inflicted Damage 46 | . 23 9 . 14 Shots 2 | . 1 . . 1 Rammed 3 | . 1 2 . . Targets Rammed 3 | . 1 2 . . Kicked . | . . . . . Crushed . | . . . . . Highest Temperature 177 | . 177 126 . . Average Temperature 48 | . 49 47 . . Received Heat Transfer 293 | . 168 125 . . Siege Activations . | . . . . . Robots Corrupted . | . . . . . Combat Hostiles . | . . . . . Parts Fried . | . . . . . Impact Corruptions 1 | . . 1 . . Robots Melted . | . . . . . Combat Hostiles . | . . . . . Parts Melted . | . . . . . Heat Transferred 50 | . 50 . . . Parts Sabotaged . | . . . . . Parts Stolen . | . . . . . Parts Stripped . | . . . . . Power Chain Reactions 1 | . 1 . . . Missiles Intercepted . | . . . . . Alert | -11 -10 -10 -10 -9 ------- Run | Scr Mat Min Exi Min Peak Influence 310 | . 310 106 . 20 Average Influence 93 | . 160 44 . 4 Maximum Alert Level 1 | . 1 . . . Low Security (%) 85 | 100 67 100 . 100 Level 1 14 | . 32 . . . Level 2 . | . . . . . Level 3 . | . . . . . Level 4 . | . . . . . Level 5 . | . . . . . High Security . | . . . . . Max Security . | . . . . . Squads Dispatched 4 | . 4 . . . Investigation 1 | . 1 . . . Extermination . | . . . . . Reinforcement 3 | . 3 . . . Assault . | . . . . . Garrison . | . . . . . Intercept . | . . . . . Construction Impeded . | . . . . . Haulers Reinforced . | . . . . . Stealth | -11 -10 -10 -10 -9 --------- Run | Scr Mat Min Exi Min Distress Signals 2 | . 2 . . . Communications Jammed . | . . . . . Distress Signals . | . . . . . Times Spotted 35 | . 20 14 . 1 Peak Tracking Total 4 | . 4 3 . 1 Tactical Retreats . | . . . . . Traps | -11 -10 -10 -10 -9 ------- Run | Scr Mat Min Exi Min Traps Triggered . | . . . . . Indirectly . | . . . . . Trap Hack Attempts . | . . . . . Triggered . | . . . . . Disarmed . | . . . . . Reprogrammed 6 | . 6 . . . Reused . | . . . . . Traps Extracted . | . . . . . Installed . | . . . . . Triggered . | . . . . . Machines | -11 -10 -10 -10 -9 ---------- Run | Scr Mat Min Exi Min Machines Disabled 3 | . 3 . . . Max in Single Turn 1 | . 1 . . . Machines Sabotaged . | . . . . . Garrisons Compromised . | . . . . . Overloaded Fab Kills . | . . . . . Fab Network Shutdowns . | . . . . . Hacking | -11 -10 -10 -10 -9 --------- Run | Scr Mat Min Exi Min Machines Accessed 10 | . 7 . 3 . Terminals 6 | . 6 . . . Fabricators . | . . . . . Repair Stations . | . . . . . Recycling Units 1 | . 1 . . . Scanalyzers . | . . . . . Garrison Access . | . . . . . Total Hacks 25 | . 22 . 3 . Successful 20 | . 17 . 3 . Failed 5 | . 5 . . . Catastrophic . | . . . . . Database Lockouts . | . . . . . Manual 1 | . . . 1 . Terminals 21 | . 21 . . . Fabricators . | . . . . . Repair Stations . | . . . . . Recycling Units 1 | . 1 . . . Scanalyzers . | . . . . . Garrison Access . | . . . . . Terminal Hacks 19 | . 16 . 3 . Record 2 | . . . 2 . Prototype ID Bank 2 | . 2 . . . Emergency Access Points 3 | . 3 . . . Alert Level 2 | . 2 . . . Unreport Threat 1 | . 1 . . . Locate Traps 1 | . 1 . . . Reprogram Traps 1 | . 1 . . . Investigation Status 1 | . 1 . . . Recall Investigation 2 | . 2 . . . Hauler Manifests 1 | . 1 . . . Registered Components 1 | . 1 . . . Zone Layout 1 | . 1 . . . EX-Prototype ID Bank 1 | . . . 1 . Fabricator Hacks . | . . . . . Repair Station Hacks . | . . . . . Recycling Unit Hacks 1 | . 1 . . . Report Inventory 1 | . 1 . . . Scanalyzer . | . . . . . Garrison Access Hacks . | . . . . . Unauthorized Hacks . | . . . . . Terminals . | . . . . . Fabricators . | . . . . . Repair Stations . | . . . . . Recycling Units . | . . . . . Scanalyzers . | . . . . . Garrison Access . | . . . . . Data Cores Recovered . | . . . . . Used . | . . . . . Hacking Detections 5 | . 5 . . . Full Trace Events 1 | . 1 . . . Feedback Events . | . . . . . Feedback Blocked . | . . . . . Robot Schematics Acquired . | . . . . . Robots Built . | . . . . . Matter . | . . . . . Time . | . . . . . Total Robot Build Rating . | . . . . . Part Schematics Acquired . | . . . . . Parts Built . | . . . . . Matter . | . . . . . Time . | . . . . . Total Part Build Rating . | . . . . . Parts Repaired . | . . . . . Time . | . . . . . Parts Recycled . | . . . . . Recycled Matter . | . . . . . Retrieved Matter . | . . . . . Retrieved Components . | . . . . . Parts Scanalyzed . | . . . . . Part Schematics Acquired . | . . . . . Parts Damaged . | . . . . . Bothacking | -11 -10 -10 -10 -9 ------------ Run | Scr Mat Min Exi Min Used RIF Installer . | . . . . . Robots Hacked 2 | . 2 . . . Non-combat 1 | . 1 . . . Combat 1 | . 1 . . . Robot Hacks Applied 2 | . 2 . . . parse_system 1 | . 1 . . . no_distress 1 | . 1 . . . Relay Couplers Released . | . . . . . Robots Rewired . | . . . . . Allies Hacked . | . . . . . Hacks Repelled . | . . . . . Allies | -11 -10 -10 -10 -9 -------- Run | Scr Mat Min Exi Min Total Allies . | . . . . . Largest Group . | . . . . . Highest-Rated Group . | . . . . . Highest-Rated Ally . | . . . . . Total Orders . | . . . . . Ally Attacks . | . . . . . Total Damage . | . . . . . Kills . | . . . . . Allies Corrupted . | . . . . . Allies Melted . | . . . . . Intel | -11 -10 -10 -10 -9 ------- Run | Scr Mat Min Exi Min Robot Analysis Total . | . . . . . Derelict Logs Recovered 2 | . . 2 . . Drone Launches . | . . . . . Drone Recoveries . | . . . . . Exploration | -11 -10 -10 -10 -9 ------------- Run | Scr Mat Min Exi Min Turns Passed 2340 | 60 653 776 842 9 Spaces Moved 1231 | 44 294 346 545 2 Core 7 | 7 . . . . Treads . | . . . . . Legs 1224 | 37 294 346 545 2 Wheels . | . . . . . Hover . | . . . . . Flight . | . . . . . Fastest Speed 50 | 50 120 150 150 210 Average Speed 161 | 108 161 180 153 210 Slowest Speed 240 | 120 180 240 180 210 Overloaded Moves . | . . . . . Propulsion Burnouts . | . . . . . Robots Hopped . | . . . . . Cave-ins Triggered . | . . . . . Exploration Rate (%) 43 | 4 50 69 91 3 Regions Visited 4 Branch Regions 3 Pre-discovered Areas 2 | . . 2 . . Known Exits Taken . | . . . . . Unknown Exits Taken 4 | 1 1 1 1 . Scrap Searched 2 | . . 2 . . Spaces Dug . | . . . . . Terrain Destroyed 21 | . 5 5 . 11 Melee . | . . . . . Projectile . | . . . . . AOE 21 | . 5 5 . 11 Actions | -11 -10 -10 -10 -9 --------- Run | Scr Mat Min Exi Min Total 1428 | 56 397 417 553 5 Wait 35 | . 30 5 . . Move 1227 | 43 293 345 544 2 Hop . | . . . . . Pick Up 37 | 7 16 12 2 . Fast Attach . | . . . . . Attach 20 | 6 6 7 . 1 Detach 3 | . 2 1 . . Swap 4 | . 2 1 1 . Drop 15 | . 5 4 6 . Fire 82 | . 40 40 . 2 Melee 2 | . 2 . . . Ram . | . . . . . Kick 3 | . 1 2 . . Crush . | . . . . . Escape Stasis . | . . . . . Rewire . | . . . . . Trap . | . . . . . Miscellaneous . | . . . . . Route ------- -11/Scrapyard -10/Materials (discovered 3 exits: [*Mat] / [*Min x2]) -10/Mines (discovered 3 exits: [*Mat x2] / *Exi) -10/Exiles -9/Mines History --------- Turn | Location | Event 3 | -11/Scrapyard | Discovered new exit (range 16) 61 | -11/Scrapyard | Entered Materials 215 | -10/Materials | Discovered new exit (range 16) 306 | -10/Materials | Build established: Mutant 494 | -10/Materials | Discovered new exit (range 4) 667 | -10/Materials | Discovered new exit (range 16) 714 | -10/Materials | Entered Mines 757 | -10/Mines | Assembled infested the area 967 | -10/Mines | Core integrity fell below 50% 1049 | -10/Mines | Learned location of Zion (-6) 1052 | -10/Mines | Discovered new exit (range 9) 1206 | -10/Mines | Lost 3 parts (1p1n1w) 1309 | -10/Mines | Discovered new exit (range 8) 1392 | -10/Mines | Deemed a non-threat by the Exiles lab entrance 1392 | -10/Mines | Discovered new exit (range 5) 1490 | -10/Mines | Entered Exiles 1511 | -10/Exiles | Build established: Scavenger-Mutant 1534 | -10/Exiles | Met 8R-AWN 1571 | -10/Exiles | Met EX-HEX 1679 | -10/Exiles | Met EX-BIN 1697 | -10/Exiles | Aligned with FarCom system 1699 | -10/Exiles | Given EX-Vault access code 1735 | -10/Exiles | Opened EX-Vault 1845 | -10/Exiles | Found Flying Fortress v7 1890 | -10/Exiles | Warned to stay clear of 0b10 Research branches 1941 | -10/Exiles | Met EX-DEC 2036 | -10/Exiles | Visited The Gauntlet 2313 | -10/Exiles | Discovered new exit (range 14) 2332 | -10/Exiles | Left Exiles lab with Flying Fortress v7 2332 | -10/Exiles | Entered Mines 2340 | -9/Mines | Core integrity fell below 20% 2341 | -9/Mines | Destroyed by L-31 Rogue with Katana Last Messages --------------- the FarCom system will continue to maintain contact via our distributed network. EX-BIN: And don't even think about spreading that code around. We're gonna change it right after you leave. Most certainly not to something like 1234 which I did last time as a little joke and some thief managed to sneak in here and steal a few of HEX's prototypes. EX-DEC: Ah I see we have a visitor. One wrong move in here and I'll invert your atomic chain! 01943_ EX-DEC: "Oops, I hope HEX didn't hear that..." 3C-LL6(z): I was there on that fateful day we tested the Lightpack 1.0. It was such a good haul, too, only to see JA-CK9 crushed like a forgotten microchip... 02313_ EXIT=FOUND LOCATION=UNKNOWN GOAL=ESCAPE 02332_ Receiving FarCom transmissions... 02332_ G-34 Mercenary destroyed. 02334_ The unstable cave ceiling collapses. 02334_ Datajack destroyed. 02334_ Aluminum Leg destroyed. Map ----- +----------------------------------------------------+ | ????????????????????????????? | | ????????????????????????????? | | ????????????????????????????? | | ????????????????????????????? | | ????????????????????????????? | | ????????????????????????????? | | ????????????????????????????? | | ????????????????????????????? | | ????????????????????????????? | | ????????????????????????????? | | ????????????????????????????? | | ????????????????????????????? | | ????????????????????????????? | | ????####????????????????????? | | ????# ????????????????????? | | ????# ????????????????????? | | ????# #????????????????????? | | ????# #????????????????????? | | ????# #????????????????????? | | ????# #?####???????????????? | | ????# ## ##??????????????? | | ??### # #??????????????? | | ??# * #???????????????? | | ??# % #???????????????? | | ??# l ! ##???????????????? | | ??# @ ##???????????????? | | ??# #????????????????? | | ??# #????????????????? | | ??##########????????????????? | | ????????????????????????????? | | ????????????????????????????? | | | | | | | | | | | | | | | | | | | | | | | | | | | | | | | | | | | | | | | +----------------------------------------------------+ Best States ------------- Heat Dissipation 25 Energy Generation 14 Energy Capacity 250 Matter Stores 300 Matter Capacity 300 Sight Range 16 Terrain Scan Density 10 Evasion (%) 40 Launcher Accuracy 20 Offensive Hacking 10 Item Schematics ----------------- None Robot Schematics ------------------ None Fabricated ------------ Nothing Alien Tech Used ----------------- None Achievements -------------- None Challenges ------------ None Game ------ Seed TerrainBombMace Manual? 0 Play Time 00:25:07 Cumulative 16.1 hours Start 2020.01.17 @ 05:58:12 End 2020.01.17 @ 06:27:30 Sessions 1 Manual Loads 0 Difficulty Rogue Special Mode None Game No. 25 Rogue 25 Adventurer 0 Explorer 0 Win Type - Total 0 Types 0/0/0/0/0/0/0 Lore% 19 Gallery% 21 Achievement% 17 Wizard Run 0 Options --------- ASCII 0 Keyboard 0 Movement Numpad Keybinds 0 Fullscreen 2 Font 18/SmallcapsGlow Map View 76x50 Tactical HUD 1 Map Filters NONE Filters NONE Steam 1 RUN: 8c932538-e156-4f51-bbc8-71457d2f1dc6